bitfinex-derivatives/quotes_SOLF0:USTF0_20250206
["timestamp","ask_amount","ask_price","bid_price","bid_amount"]
[1738839477534,0.03240487,201.09,201.07,13.50453158]
[1738839479235,0.03240487,201.09,201.08,4.9709]
[1738839484141,0.03240487,201.09,201.05,14.99243158]
[1738839485140,0.03240487,201.09,201.06,4.9713]
[1738839486233,0.03240487,201.09,201.07,13.50473158]
[1738839486637,0.03240487,201.09,201.07,8.53363158]
[1738839486841,0.03240487,201.09,201.08,4.9709]
[1738839487041,0.03240487,201.09,201.07,8.53363158]
[1738839488244,0.03240487,201.09,201.06,4.9714]
[1738839490837,4.971,201.08,201.04,0.03735998]
[1738839491443,4.9712,201.07,201.04,0.03735998]
[1738839492041,0.03240487,201.09,201.05,4.9714]
[1738839493445,0.03240487,201.09,201.05,8.53363158]
[1738839494740,0.03240487,201.09,201.06,4.9712]
[1738839497742,0.03240487,201.09,201.08,4.9709]
[1738839500646,0.03240487,201.09,201.07,8.53363158]
[1738839500850,0.03240487,201.09,201.05,8.53363158]
[1738839501447,0.03240487,201.09,201.05,13.50523158]
[1738839502754,0.03240487,201.09,201.04,0.03735998]
[1738839502958,5.00310487,201.09,201.04,5.00915998]
[1738839504555,8.56603645,201.09,201.04,0.03735998]
[1738839505454,4.9709,201.08,201.04,0.03735998]
[1738839505857,8.53363158,201.07,201.04,0.03735998]
[1738839506058,13.50473158,201.07,201.04,0.03735998]
[1738839506957,8.53363158,201.07,201.04,0.03735998]
[1738839507159,4.9709,201.08,201.04,0.03735998]
[1738839507657,13.53673645,201.09,201.04,0.03735998]
[1738839508354,13.53673645,201.09,201.04,5.00915998]
[1738839509257,0.03240487,201.09,201.04,5.00915998]
[1738839509858,0.03240487,201.09,201.05,13.50523158]
[1738839513261,0.03240487,201.09,201.07,8.53363158]
[1738839514757,0.03240487,201.09,201.08,4.9709]
[1738839517551,4.9691,201.16,201.07,8.53363158]
[1738839517752,4.9691,201.16,201.11,13.50373158]
[1738839517957,8.53363158,201.19,201.13,8.53363158]
[1738839518760,8.53363158,201.19,201.14,0.036238]
[1738839518761,0.0338784,201.18,201.14,0.036238]
[1738839519361,5.0023784,201.18,201.14,0.036238]
[1738839525361,5.0023784,201.18,201.14,5.005638]
[1738839525562,0.0338784,201.18,201.14,0.036238]
[1738839525763,0.0338784,201.18,201.15,4.9689]
[1738839527859,0.0338784,201.18,201.16,4.9687]
[1738839528164,0.0338784,201.18,201.17,8.53363158]
[1738839530965,0.0338784,201.18,201.16,4.9688]
[1738839536569,0.0338784,201.18,201.17,8.53363158]
[1738839541978,0.0338784,201.18,201.15,10.16553158]
[1738839542577,0.0338784,201.18,201.17,8.53363158]
[1738839542772,191.73909627,201.27,201.17,8.53363158]
[1738839542978,191.73909627,201.27,201.2,8.53363158]
[1738839543277,4.9671,201.24,201.2,8.53363158]
[1738839543881,4.99937933,201.24,201.2,8.56574145]
[1738839546382,0.03227933,201.24,201.2,8.56574145]
[1738839549178,0.03227933,201.24,201.22,8.53363158]
[1738839550783,0.03227933,201.24,201.22,13.50093158]
[1738839552177,0.03227933,201.24,201.22,8.53363158]
[1738839552775,0.03227933,201.24,201.23,4.9672]
[1738839554788,4.965,201.32,201.26,4.9663]
[1738839554980,8.53363158,201.35,201.27,8.53363158]
[1738839555286,4.9647,201.34,201.29,8.53363158]
[1738839555687,8.53363158,201.37,201.29,8.53363158]
[1738839555882,0.03326701,201.34,201.29,13.53473853]
[1738839558689,8.56689859,201.34,201.29,0.03550695]
[1738839558888,8.53363158,201.32,201.29,0.03550695]
[1738839559395,4.9652,201.31,201.29,0.03550695]
[1738839559793,8.53363158,201.32,201.29,0.03550695]
[1738839559993,13.49903158,201.3,201.29,0.03550695]
[1738839561494,8.53363158,201.3,201.23,8.53363158]
[1738839561693,4.966,201.28,201.24,4.9669]
[1738839562090,4.966,201.28,201.23,8.53363158]
[1738839562292,8.53363158,201.28,201.22,4.9672]
[1738839562492,8.53363158,201.28,201.21,8.53363158]
[1738839562694,0.03527072,201.27,201.23,0.0354635]
[1738839563099,4.9666,201.26,201.23,0.0354635]
[1738839565597,5.00147072,201.27,201.23,8.56909508]
[1738839566200,5.00147072,201.27,201.25,8.53363158]
[1738839568498,0.03527072,201.27,201.25,8.53363158]
[1738839568701,0.03527072,201.27,201.26,4.9664]
[1738839571702,0.03527072,201.27,201.25,8.53363158]
[1738839573704,0.03527072,201.27,201.25,13.50023158]
[1738839574002,0.03527072,201.27,201.25,8.53363158]
[1738839575104,0.03527072,201.27,201.26,4.9664]
[1738839576703,117.11590816,201.32,201.25,8.53363158]
[1738839576905,8.53363158,201.38,201.31,8.53363158]
[1738839577796,4.9645,201.34,201.32,0.03667258]
[1738839578202,0.0382458,201.37,201.32,0.03667258]
[1738839578404,4.9643,201.35,201.32,0.03667258]
[1738839586314,0.0382458,201.37,201.32,0.03667258]
[1738839586315,4.9645,201.34,201.32,0.03667258]
[1738839586517,0.0382458,201.37,201.33,8.53363158]
[1738839587509,4.964,201.36,201.33,8.53363158]
[1738839589012,5.0020458,201.37,201.33,13.49833158]
[1738839590215,5.0020458,201.37,201.33,8.53363158]
[1738839592714,0.0382458,201.37,201.32,5.00157258]
[1738839592914,4.964,201.36,201.32,5.00157258]
[1738839596611,4.964,201.36,201.32,0.03667258]
[1738839598114,5.0020458,201.37,201.32,0.03667258]
[1738839599816,4.964,201.36,201.32,0.03667258]
[1738839600114,8.53363158,201.34,201.32,0.03667258]
[1738839600416,4.9647,201.33,201.32,0.03667258]
[1738839600610,8.53363158,201.31,201.26,6.84885015]
[1738839600815,8.53363158,201.33,201.26,6.84885015]
[1738839601015,4.9651,201.32,201.27,4.9662]
[1738839601214,4.9651,201.32,201.27,13.49983158]
[1738839601713,4.9651,201.32,201.28,4.9659]
[1738839601714,4.99895274,201.32,201.28,4.9659]
[1738839602517,0.03385274,201.32,201.28,4.9659]
[1738839602717,0.03385274,201.32,201.27,13.53323171]
[1738839603320,0.03385274,201.32,201.27,8.56713171]
[1738839603520,0.03385274,201.32,201.28,4.9658]
[1738839604324,0.03385274,201.32,201.29,4.9656]
[1738839604522,0.03385274,201.32,201.31,8.53363158]
[1738839605617,0.03385274,201.32,201.31,13.49883158]
[1738839607523,4.963,201.41,201.34,4.9642]
[1738839607824,8.53363158,201.45,201.38,8.53363158]
[1738839608215,4.9623,201.43,201.38,8.53363158]
[1738839608820,0.03794096,201.43,201.4,8.53363158]
[1738839610625,0.03794096,201.43,201.4,13.49653158]
[1738839610826,0.03794096,201.43,201.42,8.53363158]
[1738839613027,0.03794096,201.43,201.42,13.49613158]
[1738839613727,8.53363158,201.53,201.44,4.9618]
[1738839613924,8.53363158,201.53,201.46,8.53363158]
[1738839614324,4.9605,201.51,201.46,8.53363158]
[1738839614627,8.53363158,201.53,201.46,8.53363158]
[1738839615028,4.99568959,201.52,201.47,4.99902417]
[1738839615927,4.9604,201.51,201.47,4.99902417]
[1738839616127,0.03568959,201.52,201.47,0.03792417]
[1738839616526,8.53363158,201.51,201.47,0.03792417]
[1738839616726,8.53363158,201.49,201.47,0.03792417]
[1738839617224,4.961,201.48,201.47,0.03792417]
[1738839617726,4.962,201.44,201.4,1.5256]
[1738839618025,4.962,201.44,201.4,6.4885]
[1738839618430,8.53363158,201.42,201.37,8.53363158]
[1738839618621,8.53363158,201.42,201.37,13.49733158]
[1738839619028,8.56644487,201.42,201.37,13.53113625]
[1738839619829,4.99531329,201.42,201.37,13.53113625]
[1738839620918,4.9628,201.41,201.37,8.56743625]
[1738839622229,0.03281329,201.42,201.37,8.56743625]
[1738839622428,8.53363158,201.4,201.37,0.03380467]
[1738839623132,4.9635,201.38,201.37,0.03380467]
[1738839624125,13.49713158,201.38,201.37,0.03380467]
[1738839624637,8.53363158,201.38,201.29,8.53363158]
[1738839624828,8.53363158,201.36,201.29,8.53363158]
[1738839625229,4.9645,201.34,201.3,4.9653]
[1738839625430,8.53363158,201.36,201.3,4.9653]
[1738839625932,4.9645,201.34,201.31,0.03464691]
[1738839626135,0.03142028,201.35,201.31,0.03464691]
[1738839627136,4.9649,201.32,201.31,0.03464691]
[1738839630238,4.9648,201.33,201.31,0.03464691]
[1738839631335,8.53363158,201.34,201.31,0.03464691]
[1738839631540,4.9649,201.32,201.31,0.03464691]
[1738839632034,13.49853158,201.32,201.31,0.03464691]
[1738839632937,8.53363158,201.25,201.2,6.4896]
[1738839633140,8.53363158,201.25,201.2,1.5217]
[1738839633338,8.53363158,201.25,201.19,1.5789]
[1738839634044,0.03339948,201.24,201.2,0.03304615]
[1738839635747,4.9677,201.22,201.2,0.03304615]
[1738839636052,0.03339948,201.24,201.2,0.03304615]
[1738839636448,4.9675,201.22,201.2,0.03304615]
[1738839638654,4.9677,201.21,201.2,0.03304615]
[1738839639954,4.9687,201.17,201.12,78.27595133]
[1738839641153,5.00562881,201.17,201.12,78.30892485]
[1738839641755,0.03692881,201.17,201.12,78.30892485]
[1738839642456,4.969,201.16,201.12,0.03297352]
[1738839642853,0.03692881,201.17,201.12,0.03297352]
[1738839643057,0.03692881,201.17,201.12,5.00287352]
[1738839643355,0.03692881,201.17,201.12,0.03297352]
[1738839644459,5.00562881,201.17,201.12,0.03297352]
[1738839646358,0.03692881,201.17,201.12,5.00287352]
[1738839647559,0.03692881,201.17,201.12,0.03297352]
[1738839647759,5.00582881,201.17,201.12,0.03297352]
[1738839649462,5.00582881,201.17,201.12,5.00277352]
[1738839649859,0.03692881,201.17,201.12,0.03297352]
[1738839650361,13.33263632,201.15,201.12,0.03297352]
[1738839650963,13.33263632,201.15,201.01,14.82563632]
[1738839651261,13.33263632,201.12,201.01,14.82563632]
[1738839651963,4.9707,201.09,201.05,4.9714]
[1738839652158,0.0345723,201.1,201.05,0.03296762]
[1738839653664,4.971,201.08,201.05,0.03296762]
[1738839653961,0.0345723,201.1,201.05,0.03296762]
[1738839654868,5.0050723,201.1,201.05,5.00456762]
[1738839655166,0.0345723,201.1,201.05,5.00456762]
[1738839655657,4.9708,201.09,201.05,5.00456762]
[1738839655860,13.33263632,201.09,201.05,0.03296762]
[1738839657766,4.9714,201.06,201.05,0.03296762]
[1738839658565,13.33263632,201.06,200.95,1.6073]
[1738839658762,13.33263632,201.02,200.95,1.6073]
[1738839659466,4.9736,200.98,200.95,1.6073]
[1738839659668,4.9736,200.98,200.96,0.03637296]
[1738839660063,4.9736,200.97,200.96,0.03637296]
[1738839660464,0.03406333,201.01,200.96,0.03637296]
[1738839660664,4.9736,200.97,200.96,0.03637296]
[1738839661870,4.9746,200.94,200.88,6.84885015]
[1738839662064,13.33263632,200.95,200.89,4.9755]
[1738839662268,13.33263632,200.98,200.88,6.84885015]
[1738839662467,4.9742,200.95,200.88,6.84885015]
[1738839662965,13.33263632,200.98,200.88,6.84885015]
[1738839663167,0.03214845,200.94,200.89,0.03778488]
[1738839663566,4.9745,200.94,200.89,4.9754]
[1738839663865,0.03596337,200.94,200.89,0.03597603]
[1738839664570,4.9747,200.93,200.89,0.03597603]
[1738839665163,0.03596337,200.94,200.89,0.03597603]
[1738839665567,4.9753,200.9,200.89,0.03597603]
[1738839667973,13.33263632,200.92,200.8,1.5098]
[1738839668274,13.33263632,200.89,200.8,1.5098]
[1738839668573,13.33263632,200.86,200.77,4.9785]
[1738839668765,13.33263632,200.86,200.75,1.5004]
[1738839668967,0.03346861,200.84,200.79,0.03342017]
[1738839669677,4.9778,200.8,200.79,0.03342017]
[1738839670380,18.31043632,200.8,200.79,0.03342017]
[1738839670581,4.9783,200.79,200.74,6.84885015]
[1738839670780,13.33263632,200.8,200.69,27.46547094]
[1738839670979,13.33263632,200.77,200.69,27.46547094]
[1738839671277,4.9795,200.74,200.69,27.46547094]
[1738839671780,5.01688086,200.74,200.69,27.50071391]
[1738839672080,0.03738086,200.74,200.7,4.9803]
[1738839672283,0.03738086,200.74,200.69,27.50071391]
[1738839673080,5.01678086,200.74,200.69,27.50071391]
[1738839673281,0.03738086,200.74,200.69,27.50071391]
[1738839673582,5.01668086,200.74,200.69,27.50071391]
[1738839673779,0.03738086,200.74,200.69,27.50071391]
[1738839674180,0.03738086,200.74,200.7,4.9802]
[1738839674381,0.03738086,200.74,200.69,27.50071391]
[1738839675083,4.9796,200.73,200.69,0.03524297]
[1738839675284,0.03738086,200.74,200.69,0.03524297]
[1738839675484,13.33263632,200.72,200.69,0.03524297]
[1738839675880,0.03738086,200.74,200.54,1.5571]
[1738839675881,13.33263632,200.66,200.54,1.5571]
[1738839676083,18.31413632,200.66,200.6,4.9825]
[1738839676285,13.33263632,200.66,200.54,1.5571]
[1738839677087,0.03453626,200.62,200.58,0.03539699]
[1738839677287,0.03453626,200.62,200.6,4.9827]
[1738839678394,0.03453626,200.62,200.58,5.01839699]
[1738839678688,0.03453626,200.62,200.58,0.03539699]
[1738839678891,0.03453626,200.62,200.61,4.9825]
[1738839679090,13.33263632,200.69,200.58,0.03539699]
[1738839679282,13.33263632,200.69,200.64,4.9817]
[1738839680288,13.36692069,200.69,200.64,5.01769277]
[1738839681189,0.03428437,200.69,200.66,4.9812]
[1738839681791,0.03428437,200.69,200.67,4.9809]
[1738839681992,0.03428437,200.69,200.64,0.03599277]
[1738839682287,13.33263632,200.76,200.64,0.03599277]
[1738839683189,13.33263632,200.79,200.68,13.33263632]
[1738839683397,0.03456884,200.72,200.68,13.33263632]
[1738839683595,13.33263632,200.82,200.77,4.9785]
[1738839683801,13.33263632,200.82,200.71,13.33263632]
[1738839684091,13.33263632,200.85,200.71,13.33263632]
[1738839684293,13.33263632,200.85,200.79,4.978]
[1738839684894,0.03753497,200.84,200.8,0.03194309]
[1738839685293,0.03753497,200.84,200.81,4.9775]
[1738839687297,0.03753497,200.84,200.8,0.03194309]
[1738839687597,21.44759035,200.84,200.8,0.03194309]
[1738839687986,4.9776,200.81,200.8,0.03194309]
[1738839688192,21.41005538,200.81,200.72,1.5172]
[1738839688787,21.41005538,200.85,200.73,1.6124]
[1738839689298,4.9771,200.84,200.77,0.03161114]
[1738839689598,0.03176567,200.81,200.77,0.03161114]
[1738839689798,0.03176567,200.81,200.79,4.9779]
[1738839689990,0.03176567,200.81,200.77,0.03161114]
[1738839690999,4.9783,200.78,200.77,0.03161114]
[1738839695310,4.9778,200.8,200.77,0.03161114]
[1738839695713,0.03176567,200.81,200.77,0.03161114]
[1738839696013,4.9779,200.8,200.77,0.03161114]
[1738839696407,4.9782,200.79,200.77,0.03161114]
[1738839696609,0.03176567,200.81,200.77,0.03161114]
[1738839697211,4.9783,200.78,200.77,0.03161114]
[1738839697412,0.03176567,200.81,200.77,0.03161114]
[1738839697913,4.9783,200.78,200.77,0.03161114]
[1738839699914,0.03176567,200.81,200.77,0.03161114]
[1738839700810,0.03176567,200.81,200.79,4.978]
[1738839701009,0.03176567,200.81,200.77,0.03161114]
[1738839701210,117.38887173,200.88,200.77,0.03161114]
[1738839701415,4.9768,200.84,200.79,4.978]
[1738839701618,117.38887173,200.88,200.79,4.978]
[1738839702112,117.38887173,200.88,200.76,3.0922]
[1738839702515,0.03762747,200.84,200.8,0.03212149]
[1738839703321,4.9771,200.83,200.8,0.03212149]
[1738839703919,0.03762747,200.84,200.8,0.03212149]
[1738839704114,4.9774,200.82,200.8,0.03212149]
[1738839704822,5.01442747,200.84,200.8,0.03212149]
[1738839705121,0.03762747,200.84,200.8,0.03212149]
[1738839705323,4.9773,200.83,200.8,0.03212149]
[1738839705725,0.03762747,200.84,200.8,0.03212149]
[1738839705918,0.03762747,200.84,200.81,4.9775]
[1738839706424,0.03762747,200.84,200.8,0.03212149]
[1738839706718,117.38887173,200.88,200.8,0.03212149]
[1738839707325,117.38887173,200.88,200.83,4.9768]
[1738839707924,4.9774,200.82,200.8,0.03212149]
[1738839708126,13.37810252,200.83,200.8,0.03212149]
[1738839708329,13.41469225,200.83,200.72,22.20932079]
[1738839708526,4.979,200.76,200.72,22.20932079]
[1738839709623,4.979,200.76,200.75,27.46547094]
[1738839712136,4.9795,200.73,200.72,0.03572564]
[1738839716140,21.43590923,200.75,200.6,8.36295015]
[1738839716431,21.43590923,200.71,200.6,8.36295015]
[1738839716637,4.9809,200.68,200.6,13.34565015]
[1738839716833,21.43590923,200.71,200.6,11.83155015]
[1738839717236,0.03687931,200.68,200.63,0.03612754]
[1738839717435,4.9812,200.67,200.63,0.03612754]
[1738839717637,0.03687931,200.68,200.63,0.03612754]
[1738839718138,0.03687931,200.68,200.65,4.9815]
[1738839718334,0.03687931,200.68,200.63,0.03612754]
[1738839718734,0.03687931,200.68,200.64,4.9818]
[1738839719038,0.03687931,200.68,200.64,6.4639]
[1738839719337,0.03687931,200.68,200.65,4.9814]
[1738839719538,0.03687931,200.68,200.64,1.4821]
[1738839719738,21.43590923,200.79,200.64,1.4821]
[1738839720337,4.9791,200.75,200.69,4.9803]
[1738839720543,21.43590923,200.79,200.64,1.4821]
[1738839720736,0.03604205,200.74,200.7,0.03688329]
[1738839720935,4.98,200.71,200.7,0.03688329]
[1738839721437,0.03604205,200.74,200.7,0.03688329]
[1738839722236,4.98,200.72,200.7,0.03688329]
[1738839722436,0.03604205,200.74,200.7,0.03688329]
[1738839723541,4.9776,200.81,200.74,4.9791]
[1738839723740,21.43590923,200.87,200.68,21.43590923]
[1738839724240,4.9782,200.79,200.72,4.9797]
[1738839724637,0.03648043,200.78,200.73,0.03165833]
[1738839724837,0.03648043,200.78,200.76,4.9787]
[1738839725039,21.43590923,200.87,200.73,0.03165833]
[1738839725236,117.38887173,200.88,200.72,21.43590923]
[1738839725442,117.38887173,200.88,200.73,3.6]
[1738839725637,4.9765,200.86,200.79,4.9778]
[1738839726038,117.38887173,200.88,200.73,3.6]
[1738839726343,0.03170429,200.85,200.8,0.03341417]
[1738839726742,0.03170429,200.85,200.84,4.9768]
[1738839727041,0.03170429,200.85,200.8,0.03341417]
[1738839727245,0.03170429,200.85,200.84,4.9768]
[1738839727545,21.43590923,200.94,200.8,0.03341417]
[1738839727940,21.43590923,200.94,200.77,3.1181]
[1738839728639,0.03772301,200.88,200.77,3.1181]
[1738839728840,0.03772301,200.88,200.83,0.03691432]
[1738839729743,0.03772301,200.88,200.85,4.9764]
[1738839729944,0.03772301,200.88,200.83,0.03691432]
[1738839730443,0.03772301,200.88,200.85,4.9765]
[1738839730746,0.03772301,200.88,200.83,0.03691432]
[1738839731445,0.03772301,200.88,200.85,4.9765]
[1738839732244,0.03772301,200.88,200.83,0.03691432]
[1738839732944,4.9764,200.86,200.83,0.03691432]
[1738839733136,0.03772301,200.88,200.83,0.03691432]
[1738839734747,4.9761,200.87,200.83,0.03691432]
[1738839734949,0.03772301,200.88,200.83,0.03691432]
[1738839735649,4.9768,200.84,200.83,0.03691432]
[1738839737151,26.41270923,200.84,200.83,0.03691432]
[1738839738452,4.9768,200.84,200.83,0.03691432]
[1738839740153,21.43590923,200.84,200.72,1.5611]
[1738839740550,21.43590923,200.84,200.73,4.9795]
[1738839740757,4.9783,200.79,200.72,1.5611]
[1738839741356,0.0355522,200.78,200.73,0.03729911]
[1738839741553,0.0355522,200.78,200.73,5.01679911]
[1738839741758,0.0355522,200.78,200.73,0.03729911]
[1738839742456,4.9787,200.77,200.73,0.03729911]
[1738839742657,0.0355522,200.78,200.73,0.03729911]
[1738839743158,0.0355522,200.78,200.73,5.01679911]
[1738839743461,0.0355522,200.78,200.73,0.03729911]
[1738839743862,13.43168137,200.78,200.73,0.03729911]
[1738839744860,4.9788,200.76,200.73,0.03729911]
[1738839745061,13.43168137,200.78,200.73,0.03729911]
[1738839745763,5.0138522,200.78,200.73,0.03729911]
[1738839746061,0.0355522,200.78,200.73,0.03729911]
[1738839746557,0.0355522,200.78,200.74,4.9791]
[1738839746758,0.0355522,200.78,200.73,0.03729911]
[1738839746961,114.86606946,200.86,200.74,13.39612917]
[1738839747158,114.86606946,200.86,200.81,4.9775]
[1738839747359,114.86606946,200.86,200.77,13.39612917]
[1738839747863,114.86606946,200.86,200.81,4.9773]
[1738839748064,0.03473705,200.84,200.81,4.9773]
[1738839749163,0.03473705,200.84,200.79,0.03647799]
[1738839749966,21.4442981,200.84,200.79,0.03647799]
[1738839750259,21.40956105,200.81,200.79,0.03647799]
[1738839750466,4.9778,200.8,200.79,0.03647799]
[1738839754868,4.9775,200.82,200.79,0.03647799]
[1738839755169,21.4442981,200.84,200.79,0.03647799]
[1738839755370,4.9776,200.81,200.79,0.03647799]
[1738839756069,4.9778,200.8,200.79,0.03647799]
[1738839756769,4.9778,200.8,200.79,7.799e-05]
[1738839760373,4.9795,200.74,200.7,4.9802]
[1738839760568,21.40956105,200.81,200.69,3.0584]
[1738839760769,21.40956105,200.78,200.69,3.0584]
[1738839761472,0.03248501,200.76,200.71,0.03611475]
[1738839761668,4.9798,200.72,200.71,0.03611475]
[1738839766875,4.9798,200.72,200.63,3.1374]
[1738839766876,4.9817,200.65,200.63,3.1374]
[1738839767974,4.9817,200.65,200.62,0.0328006]
[1738839768369,4.9818,200.64,200.62,0.0328006]
[1738839768772,0.0344457,200.66,200.62,0.0328006]
[1738839768971,4.982,200.63,200.62,0.0328006]
[1738839769976,4.9818,200.64,200.62,0.0328006]
[1738839770182,0.0344457,200.66,200.62,0.0328006]
[1738839771772,4.982,200.63,200.62,0.0328006]
[1738839773280,4.982,200.63,200.62,6e-07]
[1738839777683,4.984,200.55,200.52,8.44665015]
[1738839778081,4.984,200.55,200.52,1.5978]
[1738839779283,5.01901657,200.56,200.52,1.5978]
[1738839779575,0.03521657,200.56,200.52,1.5978]
[1738839780281,0.03521657,200.56,200.51,0.03526031]
[1738839780483,4.9842,200.55,200.51,0.03526031]
[1738839781288,0.03521657,200.56,200.51,0.03526031]
[1738839781885,4.9841,200.55,200.51,0.03526031]
[1738839782080,0.03521657,200.56,200.51,0.03526031]
[1738839782489,4.9842,200.55,200.51,0.03526031]
[1738839782791,0.03521657,200.56,200.51,0.03526031]
[1738839782995,4.984,200.55,200.51,0.03526031]
[1738839783290,0.03521657,200.56,200.51,0.03526031]
[1738839783492,4.9843,200.54,200.51,0.03526031]
[1738839783788,0.03521657,200.56,200.51,0.03526031]
[1738839784992,0.03521657,200.56,200.42,6.84885015]
[1738839784993,13.40996459,200.52,200.42,6.84885015]
[1738839785291,13.40996459,200.52,200.41,20.61662079]
[1738839785292,13.40996459,200.43,200.41,20.61662079]
[1738839785491,13.40996459,200.43,200.4,54.77858835]
[1738839785788,13.40996459,200.43,200.39,82.49090303]
[1738839785991,13.40996459,200.4,200.39,82.49090303]
[1738839786187,13.44767962,200.43,200.39,82.52251881]
[1738839786694,4.9873,200.42,200.39,82.52251881]
[1738839786990,13.44767962,200.43,200.39,82.52251881]
[1738839788394,4.9873,200.42,200.39,82.52251881]
[1738839788692,13.44767962,200.43,200.39,82.52251881]
[1738839788996,13.44767962,200.43,200.39,0.03161578]
[1738839789888,4.9876,200.41,200.39,0.03161578]
[1738839790094,13.44767962,200.43,200.39,0.03161578]
[1738839790594,4.9875,200.42,200.39,0.03161578]
[1738839790894,13.44767962,200.43,200.39,0.03161578]
[1738839791795,4.9877,200.4,200.39,0.03161578]
[1738839791998,18.39766459,200.4,200.39,0.03161578]
[1738839793892,13.44767962,200.43,200.39,0.03161578]
[1738839794092,0.03771503,200.43,200.39,0.03161578]
[1738839795197,13.44767962,200.43,200.39,0.03161578]
[1738839795997,0.03771503,200.43,200.39,0.03161578]
[1738839796297,4.9872,200.42,200.39,0.03161578]
[1738839797297,0.03771503,200.43,200.39,0.03161578]
[1738839798699,5.02491503,200.43,200.39,0.03161578]
[1738839798904,0.03771503,200.43,200.39,0.03161578]
[1738839799906,4.9873,200.42,200.39,0.03161578]
[1738839800205,0.03771503,200.43,200.39,0.03161578]
[1738839800507,4.9876,200.41,200.39,0.03161578]
[1738839801600,13.44767962,200.43,200.39,0.03161578]
[1738839801800,0.03771503,200.43,200.39,0.03161578]
[1738839802210,0.03771503,200.43,200.4,4.9877]
[1738839803006,0.03771503,200.43,200.42,4.9872]
[1738839803398,13.40996459,200.49,200.4,4.5989]
[1738839803602,4.9853,200.5,200.4,4.5989]
[1738839804609,0.03347125,200.47,200.43,0.037067]
[1738839804805,0.03347125,200.47,200.44,4.9866]
[1738839806115,0.03347125,200.47,200.43,0.037067]
[1738839808910,0.03347125,200.47,200.46,4.9862]
[1738839811913,115.02115279,200.54,200.48,4.9855]
[1738839812117,115.02115279,200.54,200.44,13.40996459]
[1738839812420,4.9847,200.53,200.47,4.9858]
[1738839813120,0.03297539,200.52,200.48,0.03377771]
[1738839813321,0.03297539,200.52,200.48,5.01947771]
[1738839814421,0.03297539,200.52,200.49,4.9855]
[1738839818327,0.03297539,200.52,200.5,4.9851]
[1738839818623,0.03297539,200.52,200.48,0.03377771]
[1738839818824,13.40996459,200.58,200.48,0.03377771]
[1738839819026,13.40996459,200.58,200.48,3.11647771]
[1738839819326,13.40996459,200.58,200.49,4.9853]
[1738839819824,13.40996459,200.58,200.48,8.10217771]
[1738839820021,0.03770678,200.56,200.48,3.11647771]
[1738839820228,13.44767137,200.56,200.44,13.40996459]
[1738839820426,0.03770678,200.56,200.5,0.03418379]
[1738839820725,0.03595251,200.55,200.5,0.03418379]
[1738839821427,4.9845,200.54,200.5,0.03418379]
[1738839824725,0.03595251,200.55,200.5,0.03418379]
[1738839825727,4.985,200.51,200.5,0.03418379]
[1738839826028,13.40996459,200.53,200.37,13.40996459]
[1738839826222,13.40996459,200.49,200.37,15.04336459]
[1738839826824,4.9863,200.46,200.41,4.9875]
[1738839827125,5.02343791,200.46,200.41,0.03587038]
[1738839827625,4.987,200.43,200.41,0.03587038]
[1738839831328,4.9868,200.44,200.41,0.03587038]
[1738839832025,4.9871,200.43,200.41,0.03587038]
[1738839833230,4.9868,200.44,200.41,0.03587038]
[1738839833430,0.03713791,200.46,200.41,0.03587038]
[1738839834229,13.4471025,200.46,200.41,0.03587038]
[1738839834630,8.60037696,200.44,200.41,0.03587038]
[1738839835832,4.9872,200.42,200.41,0.03587038]
[1738839838030,13.58757696,200.42,200.41,0.03587038]
[1738839838330,8.60037696,200.44,200.41,0.03587038]
[1738839838526,0.03713791,200.46,200.41,8.63624734]
[1738839838732,0.03713791,200.46,200.43,8.60037696]
[1738839839732,5.02343791,200.46,200.43,8.60037696]
[1738839839933,0.03713791,200.46,200.45,8.60037696]
[1738839840832,0.03713791,200.46,200.45,13.58687696]
[1738839841033,0.03713791,200.46,200.43,8.60037696]
[1738839841234,0.03713791,200.46,200.42,3.0417]
[1738839842934,0.03713791,200.46,200.43,8.60037696]
[1738839843435,0.03713791,200.46,200.44,4.9865]
[1738839844135,0.03713791,200.46,200.43,8.60037696]
[1738839844631,0.03713791,200.46,200.42,3.0417]
[1738839847832,0.03713791,200.46,200.42,8.0289]
[1738839848033,0.03713791,200.46,200.42,3.0417]
[1738839848537,0.03713791,200.46,200.43,4.9869]
[1738839848837,0.03713791,200.46,200.44,4.9865]
[1738839849336,0.03713791,200.46,200.42,3.0417]
[1738839850339,0.03713791,200.46,200.45,4.9865]
[1738839850937,13.43085861,200.55,200.42,16.47255861]
[1738839851137,4.9848,200.52,200.42,16.47255861]
[1738839851536,13.43085861,200.55,200.42,16.47255861]
[1738839851843,4.985,200.52,200.42,16.47255861]
[1738839852138,0.03483731,200.51,200.46,0.0330536]